Cogmind - Beta 14 @@@ ROGUE MODE // 2025.01.15 @ 11:25:15 Player: SuperSwiss Result: Self-destructed Performance ------------- Evolutions (1) 500 Regions Visited (2) 400 Robots Destroyed (22) 110 Value Destroyed (476) 476 Prototype IDs (0) 0 Alien Tech Used (0) 0 Bonus (0) 0 TOTAL SCORE: 1486 Bonus ------- None Cogmind --------- Core Integrity 289/400 Matter 290/300 Energy 160/160 System Corruption 1% Temperature Warm (132) Movement Rolling (105) Ox1 Location -9/Materials Parts ------- > --- POWER (1) -------- Light Nuclear Core > --- PROPULSION (3) --- Wheel Compact Wheel > --- UTILITY (2) ------ High-capacity Storage Unit Transport Network Coupler > --- WEAPON (3) ------- Beam Rifle Light Assault Rifle Light Assault Rifle > --- INVENTORY (20) --- Reinforced Ion Engine Reinforced Ion Engine High-capacity Matter Pod (200) Sensor Array Light Armor Plating Medium Armor Plating Medium Armor Plating Medium Armor Plating Medium Armor Plating Light Assault Rifle Grenade Launcher Hammer Peak State ------------ > --- POWER ------------ Light Nuclear Core > --- PROPULSION ------- Wheel Compact Wheel > --- UTILITY ---------- High-capacity Storage Unit Transport Network Coupler > --- WEAPON ----------- Beam Rifle Light Assault Rifle Light Assault Rifle > --- INVENTORY -------- High-capacity Matter Pod Sensor Array Light Armor Plating Medium Armor Plating Medium Armor Plating Medium Armor Plating Medium Armor Plating Light Assault Rifle Grenade Launcher Hammer [Rating: 12] Favorites ----------- Power Light Ion Engine Engine Light Ion Engine Power Core Light Nuclear Core Propulsion Wheel Wheel Wheel Utility Transport Network Coupler Device Sensor Array Storage Medium Storage Unit Processor Transport Network Coupler Weapon EM Pulse Gun Energy Gun EM Pulse Gun Ballistic Gun Light Assault Rifle Build | -11 -10 -9 ------- Run | Yrd Mat Mat Slots Evolved 2 | . . 2 Power . | . . . Propulsion 1 | . . 1 Utility . | . . . Weapon 1 | . . 1 Parts Attached 18 | 6 9 3 Power 3 | 1 1 1 Engine 2 | 1 1 . Core 1 | . . 1 Reactor . | . . . Propulsion 4 | 2 1 1 Treads . | . . . Leg . | . . . Wheel 4 | 2 1 1 Hover . | . . . Flight . | . . . Utility 6 | 1 5 . Device 1 | . 1 . Storage 4 | 1 3 . Processor 1 | . 1 . Hackware . | . . . Protection . | . . . Artifact . | . . . Weapon 5 | 2 2 1 Energy Gun 3 | 2 . 1 Energy Cannon . | . . . Ballistic Gun 2 | . 2 . Ballistic Cannon . | . . . Launcher . | . . . Special Weapon . | . . . Impact Weapon . | . . . Slashing Weapon . | . . . Piercing Weapon . | . . . Special Melee Weapon . | . . . Unidentified Prototypes . | . . . Corrupted Parts 2 | . 1 1 System Corruption 2 | . 1 1 Parts Lost 6 | . 4 2 Power 2 | . 1 1 Propulsion 2 | . 1 1 Utility . | . . . Weapon 2 | . 2 . Highest Loss Streak 2 | . 2 2 To Critical Strikes . | . . . Average Slot Usage (%) 97 | . 98 92 Engine 12 | . 14 5 Wheel 27 | . 28 27 Device 3 | . 3 . Storage 13 | . 14 11 Processor 10 | . 9 11 Energy Gun 17 | . 18 10 Ballistic Gun 9 | . 7 22 Peak Build Rating 12 | 6 8 12 Average Rating 7 | 1 7 11 On Entrance 4 | . 6 8 Naked Turns . | . . . Heaviest Build 50 | 12 45 50 Greatest Support 36 | 26 26 36 Greatest Overweight (x) 1 | . 1 1 Average Overweight (x) . | . . 1 Largest Inventory Capacity 20 | 8 20 20 Average Capacity 13 | 5 13 20 Most Carried 12 | 5 12 12 Average Carried 6 | 3 5 10 Final Capacity 20 | 8 20 20 Final Carried 12 | . 11 12 Class Distribution -------------------- 61% | Mutant 25% | Scavenger-Mutant 13% | Scavenger-Skirmisher Dominant Class ---------------- Mutant | -10/Materials Scavenger-Skirmisher | -9/Materials Resources | -11 -10 -9 ----------- Run | Yrd Mat Mat Matter Collected 591 | 260 289 42 Remotely . | . . . Salvage Created 908 | . 676 232 Parts 46 | . 38 8 Haulers Intercepted 2 | . 2 . Recyclers Shooed 1 | . 1 . Parts Field Recycled . | . . . Retrieved Matter . | . . . Parts Self-Destructed . | . . . Prevented . | . . . Kills | -11 -10 -9 ------- Run | Yrd Mat Mat Combat Hostiles Destroyed 16 | . 11 5 Guns 15 | . 10 5 AOE 1 | . 1 . Classes Destroyed 6 | . 6 . Worker 1 | . 1 . Hauler 2 | . 2 . Recycler 2 | . 2 . Mechanic 1 | . 1 . Swarmer 6 | . 6 . Grunt 10 | . 5 5 Best Kill Streak 5 | . 5 3 Combat Bots Only 4 | . 4 3 Max Kills in Single Turn 2 | . 2 1 Gunslinging . | . . . Exploded 1 | . 1 . Melee . | . . . Uniques/NPCs Destroyed . | . . . Combat | -11 -10 -9 -------- Run | Yrd Mat Mat Hostile Shots Fired 60 | . 33 27 Missed 14 | . 9 5 Damage Taken 559 | . 297 262 Core 142 | . 31 111 Absorbed by Shields . | . . . Core Remaining (%) 93 | 100 87 . Volleys Fired 52 | . 36 16 Largest 3 | . 2 3 Hottest 96 | . 80 96 Shots Fired 104 | . 56 48 Gun 104 | . 56 48 Cannon . | . . . Launcher . | . . . Special . | . . . Kinetic 46 | . 14 32 Thermal 16 | . . 16 Explosive . | . . . Electromagnetic 42 | . 42 . Robot Hit Streak 11 | . 11 10 Robot Miss Streak 3 | . 3 3 Penetration Max . | . . . Secondary Targets 1 | . . 1 Max Gunslinging Chain 1 | . . 1 Shots Hit Robots 66 | . 38 28 Core Hits 35 | . 23 12 Critical Kills . | . . . Critical Parts Destroyed . | . . . Critical Strikes 3 | . 1 2 Burn 2 | . . 2 Corrupt 1 | . 1 . Melee Attacks . | . . . Impact . | . . . Slashing . | . . . Piercing . | . . . Sneak Attacks . | . . . Combat Hostiles . | . . . Follow-up Attacks . | . . . Damage Inflicted 875 | . 564 311 Guns 806 | . 495 311 Cannons . | . . . Explosions 69 | . 69 . Melee . | . . . Ramming . | . . . Kinetic 209 | . 73 136 Thermal 244 | . 69 175 Explosive . | . . . Electromagnetic 422 | . 422 . Impact . | . . . Slashing . | . . . Piercing . | . . . Highest Corruption 1 | . 1 1 Average Corruption 1 | . 1 1 Corruption Purged . | . . . Corruption Blocked . | . . . Effects 1 | . . 1 Data Loss (minor) 1 | . . 1 Overload Shots . | . . . Overflow Damage . | . . . Projectiles . | . . . Explosions . | . . . Melee . | . . . Knockbacks . | . . . Impact . | . . . Kinetic . | . . . Secondary . | . . . Self-Inflicted Damage 13 | . 13 . Shots 1 | . 1 . Rammed . | . . . Targets Rammed . | . . . Kicked . | . . . Crushed . | . . . Highest Temperature 226 | . 84 226 Average Temperature 59 | . 30 90 Received Heat Transfer 231 | . 84 147 Siege Activations . | . . . Robots Corrupted 1 | . 1 . Combat Hostiles . | . . . Parts Fried 2 | . 2 . Impact Corruptions . | . . . Robots Melted . | . . . Combat Hostiles . | . . . Parts Melted 1 | . . 1 Heat Transferred 642 | . 50 592 Parts Sabotaged . | . . . Parts Stolen . | . . . Parts Stripped . | . . . Power Chain Reactions 1 | . 1 . Alert | -11 -10 -9 ------- Run | Yrd Mat Mat Peak Influence 245 | . 245 192 Initial 63 | . . 63 Average 92 | . 92 112 Maximum Alert Level 1 | . 1 . Low Security (%) 89 | 100 87 100 Level 1 10 | . 12 . Level 2 . | . . . Level 3 . | . . . Level 4 . | . . . Level 5 . | . . . High Security . | . . . Max Security . | . . . Squads Dispatched 4 | . 2 2 Investigation 1 | . 1 . Extermination . | . . . Reinforcement 3 | . 1 2 Assault . | . . . Garrison . | . . . Intercept . | . . . Searches Triggered . | . . . Construction Impeded . | . . . Haulers Reinforced . | . . . Active Scanning Responses . | . . . Cargo Convoy Interrupts . | . . . Stealth | -11 -10 -9 --------- Run | Yrd Mat Mat Distress Signals 1 | . 1 . Communications Jammed . | . . . Distress Signals . | . . . Times Spotted 37 | . 26 11 Peak Tracking Total 6 | . 6 4 Tactical Retreats 3 | . 3 . Traps | -11 -10 -9 ------- Run | Yrd Mat Mat Traps Triggered 2 | . 2 . Indirectly . | . . . Trap Hack Attempts . | . . . Triggered . | . . . Disarmed . | . . . Reprogrammed . | . . . Reused . | . . . Traps Extracted . | . . . Installed . | . . . Triggered . | . . . Machines | -11 -10 -9 ---------- Run | Yrd Mat Mat Machines Disabled 2 | . 1 1 Max in Single Turn 1 | . 1 1 Machines Repaired . | . . . Machines Dismantled . | . . . Machines Sabotaged . | . . . Overloaded Fab Kills . | . . . Hacking | -11 -10 -9 --------- Run | Yrd Mat Mat Machines Accessed 10 | . 7 3 Terminals 9 | . 6 3 Fabricators . | . . . Repair Stations . | . . . Recycling Units 1 | . 1 . Scanalyzers . | . . . Garrison Access . | . . . Total Hacks 23 | . 17 6 Successful 8 | . 5 3 Failed 15 | . 12 3 Catastrophic . | . . . Database Lockouts . | . . . Manual 19 | . 13 6 Terminals 21 | . 15 6 Fabricators . | . . . Repair Stations . | . . . Recycling Units 2 | . 2 . Scanalyzers . | . . . Garrison Access . | . . . Terminal Hacks . | . . . Fabricator Hacks . | . . . Repair Station Hacks . | . . . Recycling Unit Hacks 1 | . 1 . Report Inventory 1 | . 1 . Scanalyzer . | . . . Garrison Access Hacks . | . . . Unauthorized Hacks 7 | . 4 3 Terminals 7 | . 4 3 Botnet 7 | . 4 3 Fabricators . | . . . Repair Stations . | . . . Recycling Units . | . . . Scanalyzers . | . . . Garrison Access . | . . . Data Cores Recovered . | . . . Used . | . . . Hacking Detections 9 | . 7 2 Full Trace Events . | . . . Feedback Events . | . . . Feedback Blocked . | . . . Robot Schematics Acquired . | . . . Robots Built . | . . . Authchips . | . . . Time . | . . . Total Robot Build Rating . | . . . Part Schematics Acquired . | . . . Parts Built . | . . . Authchips . | . . . Time . | . . . Total Part Build Rating . | . . . Parts Repaired . | . . . Time . | . . . Parts Recycled . | . . . Recycled Matter . | . . . Retrieved Matter . | . . . Retrieved Components . | . . . Parts Scanalyzed . | . . . Part Schematics Acquired . | . . . Parts Damaged . | . . . Bothacking | -11 -10 -9 ------------ Run | Yrd Mat Mat Used RIF Installer . | . . . Robots Hacked . | . . . Non-combat . | . . . Combat . | . . . Robot Hacks Applied . | . . . Relay Couplers Released . | . . . Fabnet Peak Effective % . | . . . Robots Rewired . | . . . Allies Hacked . | . . . Hacks Repelled . | . . . Allies | -11 -10 -9 -------- Run | Yrd Mat Mat Total Allies . | . . . Largest Group . | . . . Highest-Rated Group . | . . . Highest-Rated Ally . | . . . Total Orders . | . . . Ally Attacks . | . . . Total Damage . | . . . Kills . | . . . Allies Corrupted . | . . . Allies Melted . | . . . Intel | -11 -10 -9 ------- Run | Yrd Mat Mat Robot Analysis Total . | . . . Derelict Logs Recovered . | . . . Drone Launches . | . . . Drone Recoveries . | . . . Exploration | -11 -10 -9 ------------- Run | Yrd Mat Mat Turns Passed 1144 | 31 966 147 Spaces Moved 887 | 35 769 83 Core 30 | 30 . . Treads . | . . . Legs . | . . . Wheels 857 | 5 769 83 Hover . | . . . Flight . | . . . Fastest Speed 50 | 50 90 101 Average Speed 93 | 55 94 102 Slowest Speed 105 | 90 105 105 Overloaded Moves . | . . . Propulsion Burnouts . | . . . Robots Hopped . | . . . Cave-ins Triggered . | . . . Exploration Rate (%) 35 | 3 92 10 Regions Visited 2 Branch Regions . Pre-discovered Areas . | . . . Known Exits Taken . | . . . Unknown Exits Taken 2 | 1 1 . Scrap Searched . | . . . Spaces Dug . | . . . Terrain Destroyed 4 | . 4 . Melee . | . . . Projectile . | . . . AOE 4 | . 4 . Terrain Rammed . | . . . Walls Destroyed . | . . . Machines Disabled . | . . . Actions | -11 -10 -9 --------- Run | Yrd Mat Mat Total 1116 | 45 956 115 Wait 128 | . 119 9 Move 885 | 34 768 83 Hop . | . . . Pick Up 29 | 5 20 4 Fast Attach 1 | 1 . . Attach 13 | 5 5 3 Detach . | . . . Swap 4 | . 4 . Drop 4 | . 4 . Fire 52 | . 36 16 Melee . | . . . Ram . | . . . Kick . | . . . Crush . | . . . Escape Stasis . | . . . Rewire . | . . . Trap . | . . . Miscellaneous . | . . . Route ------- -11/Scrapyard -10/Materials (discovered 5 exits: *Mat x3 / [*Min x2]) -9/Materials History --------- Turn | Location | Event 14 | -11/Scrapyard | Discovered new exit (range 14) 32 | -11/Scrapyard | Entered Materials 81 | -10/Materials | Discovered new exit (range 8) 112 | -10/Materials | Discovered new exit (range 12) 312 | -10/Materials | Build established: Mutant 407 | -10/Materials | Discovered new exit (range 13) 464 | -10/Materials | Discovered new exit (range 14) 776 | -10/Materials | Discovered new exit (range 8) 998 | -10/Materials | Entered another Materials area 998 | -9/Materials | Evolved 2 slots: Propulsion x1, Weapon x1 1145 | -9/Materials | Self-destructed Last Messages --------------- 01081_ Acquired 24 matter. 01083_ Acquired Lgt. Nuclear Core. 01093_ Acquired Rnf. Ion Engine. 01096_ R-06 Scavenger collects Aluminum Leg. 01099_ O-16 Technician: "IFF HANDSHAKE FAILED. SECURING TERMINAL." 01101_ R-06 Scavenger collects Aluminum Leg. 01104_ R-06 Scavenger collects Sml. Laser. 01111_ Heat Sink melted. 01111_ G-34 Mercenary destroyed. 01117_ ALERT: Hostiles spotted, dispatching reinforcements to Terminal M002. 01122_ Acquired 18 matter. 01124_ K-01 Serf collects debris. 01124_ R-06 Scavenger collects Sml. Laser. 01126_ G-34 Mercenary suffers critical hit (Burn). 01127_ G-34 Mercenary destroyed. 01128_ K-01 Serf collects debris. 01129_ G-34 Mercenary destroyed. 01132_ K-01 Serf collects debris. 01140_ G-34 Mercenary destroyed. 01140_ K-01 Serf collects debris. Map ----- +----------------------------------------------------+ | ???????????# #????????????????????? | | ???????????? ! ?????????????????????? | | ?????????????? ???????????????????????? | | ????????????####+######+### ??????????? | | ?####+####### ??????????? | | ?# % T ???????????? | | ?# ??????????? | | ?# %* %##+########## ??????????? | | ?# * # #????????????????????? | | ?# # #????????????????????? | | ?# # #????????????????????? | | ?# # """ #????????????????????? | | ?# # """ #????????????????????? | | ?# # """ #????????????????????? | | ?# """ ########????????????????????? | | ?# """" #???????????????????????????? | | ?# ^ """"" !#???????????????????????????? | | ?# ^ """"" ###?????????????????????????? | | ?# "" ""#?????????????????????????? | | ?# ^ ^^ T"#?????????????????????????? | | ?# ^ ""#?????????????????????????? | | ?## "T" %###?????????????????????????? | | ??# """ ###################?????????? | | ??# k r ????????? | | ??# [![ ????????? | | ??## #"T"# @%!% l ????????? | | ???# ############ *=#######??????????????? | | ???# ???????????# #????????????????????? | | ???# ???????????# #????????????????????? | | ???# ????????????# #????????????????????? | | ???? ????????????# #????????????????????? | | ?????????????????# ????????????????????? | | ?????????????????# %##???????????????????? | | ?????????????????# #????????????????????? | | ?????????????????? #????????????????????? | | ??????????????????gga#????????????????????? | | ?????????????????? #????????????????????? | | ?????????????????? g #????????????????????? | | ?????????????????? #????????????????????? | | ?????????????????? #????????????????????? | | ??????????????????# #?????????????????????? | | ??????????????????????????????????????????? | | ??????????????????????????????????????????? | | ??????????????????????????????????????????? | | ??????????????????????????????????????????? | | ??????????????????????????????????????????? | | ??????????????????????????????????????????? | | ??????????????????????????????????????????? | | ??????????????????????????????????????????? | | ??????????????????????????????????????????? | +----------------------------------------------------+ Best States ------------- Heat Dissipation 28 Energy Generation 14 Energy Capacity 160 Matter Stores 300 Matter Capacity 300 Sight Range 16 Robot Scan Range 14 Terrain Scan Density 10 Evasion (%) 50 Item Schematics ----------------- None Robot Schematics ------------------ None Fabricated ------------ Nothing Alien Tech Used ----------------- None Achievements -------------- None Challenges ------------ None Game ------ Seed CommInsulatedRedirector Manual? 0 Play Time 00:16:59 Cumulative 35.4 hours Start 2025.01.15 @ 11:10:53 End 2025.01.15 @ 11:25:15 Sessions 1 Manual Loads 0 Difficulty Rogue Special Mode None Game No. 47 Rogue 44 Adventurer 0 Explorer 3 Win Type - Total 0 Types 0/0/0/0/0/0/0/0/0 Lore% 9 Gallery% 29 Achievement% 25 Wizard Run 0 Options --------- Layout 0 ASCII 0 Keyboard 0 Movement Numpad Keybinds 0 Fullscreen 0 Font 16/SmallcapsGlow Map View 88x55 Zoom Use 0% Tactical HUD 1 Map Filters NONE Filters NONE Steam 1 RUN: 79df87c1-5d7d-45e2-a931-27f545a3d6b0